bitfinex-derivatives/quotes_SOLF0:USTF0_20240918
["timestamp","ask_amount","ask_price","bid_price","bid_amount"]
[1726629612904,9.31,131.92,131.89,3.7899]
[1726629613605,9.31,131.92,131.89,13.0999]
[1726629613804,9.31,131.92,131.89,9.31]
[1726629613805,13.0992,131.92,131.89,9.31]
[1726629617909,3.7895,131.91,131.87,3.7905]
[1726629618207,3.7895,131.91,131.87,13.1005]
[1726629618208,13.0995,131.91,131.87,13.1005]
[1726629619312,9.31,131.9,131.86,3.7909]
[1726629619513,9.31,131.88,131.85,9.31]
[1726629619715,9.31,131.88,131.84,9.31]
[1726629620514,13.1005,131.88,131.84,13.1012]
[1726629620810,13.1005,131.88,131.84,9.31]
[1726629621211,13.1005,131.88,131.85,3.7911]
[1726629621615,13.1006,131.87,131.84,9.31]
[1726629622307,13.1006,131.87,131.84,3.7914]
[1726629622707,13.1006,131.87,131.83,9.31]
[1726629622708,3.7909,131.86,131.83,9.31]
[1726629623217,3.7909,131.86,131.83,13.1016]
[1726629623714,13.1007,131.87,131.83,9.31]
[1726629624109,13.1007,131.87,131.84,3.7913]
[1726629625813,13.1004,131.88,131.85,3.7912]
[1726629628518,3.7906,131.87,131.84,13.1013]
[1726629630113,3.7906,131.87,131.85,3.7912]
[1726629630418,3.7906,131.87,131.84,9.31]
[1726629631014,3.7906,131.87,131.84,13.1013]
[1726629634721,13.1006,131.87,131.84,3.7913]
[1726629636522,13.1006,131.87,131.84,13.1013]
[1726629637223,13.1006,131.87,131.84,3.7913]
[1726629637426,13.1006,131.87,131.84,13.1013]
[1726629637623,1.4011,131.88,131.85,9.31]
[1726629638227,3.7902,131.89,131.86,3.7907]
[1726629638422,3.7902,131.89,131.86,13.1007]
[1726629641322,13.0999,131.9,131.86,13.1007]
[1726629645320,3.7902,131.89,131.81,13.35413715]
[1726629645537,3.7902,131.89,131.85,9.31]
[1726629645723,1.5034,131.92,131.86,9.31]
[1726629646027,13.0999,131.9,131.86,13.1007]
[1726629647327,13.1001,131.89,131.85,3.7911]
[1726629647524,9.31,131.89,131.84,9.31]
[1726629647725,9.31,131.88,131.84,9.31]
[1726629647921,13.1005,131.88,131.84,9.31]
[1726629648822,13.1005,131.88,131.85,3.7912]
[1726629651933,13.1001,131.89,131.86,3.7909]
[1726629652432,3.7904,131.88,131.85,3.791]
[1726629653532,1.5034,131.92,131.86,9.31]
[1726629653836,9.31,131.9,131.86,9.31]
[1726629654731,9.31,131.9,131.82,7.07662042]
[1726629654936,13.0999,131.9,131.87,3.7906]
[1726629656634,13.0999,131.9,131.86,13.1008]
[1726629660138,3.7899,131.9,131.87,3.7906]
[1726629660335,3.7899,131.9,131.87,13.1006]
[1726629660933,13.0996,131.91,131.87,13.1006]
[1726629661137,1.5034,131.92,131.88,13.1003]
[1726629661636,1.5034,131.92,131.89,9.31]
[1726629661941,3.84106527,132.03,131.91,9.31]
[1726629662143,9.31,131.96,131.92,9.31]
[1726629663033,13.0982,131.96,131.92,13.0992]
[1726629664135,9.31,131.96,131.92,13.0992]
[1726629664341,15.16,131.97,131.93,13.0988]
[1726629665646,15.16,131.97,131.94,13.0985]
[1726629665939,4.2542,132.01,131.94,13.0985]
[1726629665940,9.31,131.98,131.94,13.0985]
[1726629666546,9.31,131.96,131.88,3.73872878]
[1726629666744,9.31,131.95,131.9,9.31]
[1726629667044,9.31,131.94,131.9,9.31]
[1726629667445,9.31,131.94,131.91,3.7894]
[1726629668447,13.0985,131.95,131.91,3.7894]
[1726629669854,3.7886,131.94,131.91,3.7894]
[1726629672362,13.0984,131.95,131.91,13.0994]
[1726629673657,13.0982,131.96,131.92,9.31]
[1726629673862,9.31,131.96,131.93,9.31]
[1726629675550,9.31,131.96,131.92,9.31]
[1726629675750,13.098,131.96,131.93,3.7887]
[1726629677265,13.0984,131.95,131.92,3.7891]
[1726629677466,9.31,131.94,131.92,3.7891]
[1726629681469,13.0984,131.95,131.92,3.7891]
[1726629686876,3.7884,131.95,131.92,13.0991]
[1726629687064,13.0981,131.96,131.93,3.7888]
[1726629687268,9.31,131.98,131.93,9.31]
[1726629687876,3.7879,131.97,131.94,3.7885]
[1726629691270,13.0979,131.97,131.94,3.7885]
[1726629692577,13.0979,131.97,131.93,13.0988]
[1726629693784,13.0983,131.96,131.92,3.789]
[1726629694674,13.0979,131.97,131.94,3.7886]
[1726629694881,3.7879,131.97,131.94,3.7886]
[1726629699480,3.7876,131.98,131.94,3.7886]
[1726629699686,13.0976,131.98,131.94,3.7886]
[1726629704682,3.7878,131.97,131.94,3.7886]
[1726629707480,3.7878,131.97,131.94,13.0986]
[1726629708185,15.16,132.04,131.87,6.6420866]
[1726629708186,15.16,132.04,131.96,9.31]
[1726629708387,12.1275,132.03,131.99,9.31]
[1726629709186,3.7863,132.02,131.99,9.31]
[1726629709392,2.8175,132.03,131.99,9.31]
[1726629709589,12.1275,132.03,131.99,9.31]
[1726629710895,15.9137,132.03,131.99,9.31]
[1726629711692,6.6037,132.03,131.99,9.31]
[1726629711892,15.9137,132.03,131.99,9.31]
[1726629712798,6.6037,132.03,131.99,9.31]
[1726629713103,15.9137,132.03,131.99,9.31]
[1726629713988,6.6037,132.03,131.99,9.31]
[1726629714191,15.9137,132.03,131.99,9.31]
[1726629715093,3.7864,132.02,131.99,9.31]
[1726629716908,13.0964,132.02,131.99,9.31]
[1726629719700,13.0964,132.02,131.98,3.7874]
[1726629719701,13.0964,132.02,131.98,13.0974]
[1726629720605,9.31,132.0,131.88,7.5805]
[1726629720808,9.31,131.99,131.89,6.26496544]
[1726629721002,9.31,131.99,131.94,9.31]
[1726629721207,13.0974,131.99,131.96,3.788]
[1726629721404,13.0974,131.99,131.94,9.31]
[1726629721607,3.7876,131.98,131.95,3.7881]
[1726629723207,9.31,132.01,131.97,9.31]
[1726629723806,3.787,132.0,131.97,9.31]
[1726629724014,9.31,132.0,131.96,13.0978]
[1726629724915,3.7872,131.99,131.96,13.0978]
[1726629727105,3.7872,131.99,131.91,1.4859]
[1726629727106,2.8175,132.03,131.97,9.31]
[1726629727411,9.31,132.02,131.97,9.31]
[1726629727606,3.7869,132.01,131.98,3.7873]
[1726629728321,3.7869,132.0,131.97,13.0976]
[1726629728515,3.7869,132.0,131.97,9.31]
[1726629728720,9.31,132.01,131.92,2.7682]
[1726629729022,3.7874,131.99,131.96,9.31]
[1726629729422,3.7874,131.99,131.96,13.098]
[1726629729723,3.7875,131.98,131.96,9.31]
[1726629730525,3.7873,131.99,131.96,9.31]
[1726629730722,3.7873,131.99,131.96,13.098]
[1726629731725,3.7873,131.99,131.96,3.788]
[1726629731924,3.7873,131.99,131.96,13.098]
[1726629736330,3.787,132.0,131.97,13.0977]
[1726629739431,13.0966,132.01,131.98,9.31]
[1726629744936,13.0966,132.01,131.97,3.7877]
[1726629744937,3.787,132.0,131.97,9.31]
[1726629746940,3.787,132.0,131.97,13.0977]
[1726629747738,3.7867,132.01,131.98,13.0974]
[1726629750442,9.31,132.02,131.99,9.31]
[1726629750443,3.7864,132.02,131.99,9.31]
[1726629757139,13.0964,132.02,131.99,9.31]
[1726629757842,3.7866,132.01,131.99,9.31]
[1726629758245,3.7869,132.0,131.97,9.31]
[1726629759146,13.0969,132.0,131.96,13.0979]
[1726629762751,3.7869,132.0,131.97,9.31]
[1726629765649,3.7873,131.99,131.95,3.7882]
[1726629765953,9.31,131.99,131.95,9.31]
[1726629766140,3.7876,131.98,131.95,9.31]
[1726629767853,3.7873,131.99,131.97,9.31]
[1726629768854,3.787,132.0,131.97,9.31]
[1726629769157,9.31,132.01,131.97,9.31]
[1726629769349,3.7869,132.0,131.97,9.31]
[1726629771950,13.0967,132.01,131.97,13.0977]
[1726629772754,13.0967,132.01,131.97,9.31]
[1726629774652,3.7869,132.0,131.97,9.31]
[1726629781956,3.7868,132.01,131.98,9.31]
[1726629782559,3.7868,132.01,131.97,13.0976]
[1726629786665,3.7869,132.0,131.96,13.0979]
[1726629787572,3.7869,132.0,131.97,9.31]
[1726629788269,3.7869,132.0,131.97,13.0977]
[1726629789567,13.0967,132.01,131.97,13.0977]
[1726629793366,3.7869,132.0,131.97,13.0977]
[1726629794974,3.7869,132.0,131.97,3.7877]
[1726629795471,3.7869,132.0,131.92,2.7682]
[1726629795674,9.31,131.98,131.93,13.33226584]
[1726629795967,9.31,131.98,131.94,9.31]
[1726629796173,13.0976,131.98,131.94,13.0983]
[1726629797168,13.0976,131.98,131.94,3.7883]
[1726629797674,13.0976,131.98,131.95,3.7883]
[1726629809693,3.7878,131.97,131.94,13.0984]
[1726629810090,3.7878,131.97,131.94,3.7884]
[1726629810398,3.7878,131.97,131.94,13.0984]
[1726629811999,13.0978,131.97,131.94,13.0984]
[1726629815898,13.0978,131.97,131.94,3.7884]
[1726629818900,13.0978,131.97,131.93,13.0988]
[1726629819192,3.7881,131.96,131.93,3.7888]
[1726629819396,9.31,131.97,131.93,3.7888]
[1726629819798,13.0979,131.97,131.93,3.7888]
[1726629820200,9.31,131.97,131.93,3.7888]
[1726629821802,3.788,131.96,131.93,3.7888]
[1726629827004,13.0979,131.97,131.94,3.7885]
[1726629832511,13.0979,131.97,131.93,3.7887]
[1726629832709,3.7879,131.97,131.92,9.31]
[1726629832911,17.9775,132.03,131.95,3.7883]
[1726629833118,9.31,131.99,131.95,13.0983]
[1726629833410,13.0973,131.99,131.95,13.0983]
[1726629834008,13.0973,131.99,131.95,3.7883]
[1726629834211,13.0973,131.99,131.95,13.0983]
[1726629841923,2.8175,132.03,131.93,9.31]
[1726629842118,9.31,131.98,131.94,9.31]
[1726629842421,9.31,131.98,131.95,3.7881]
[1726629844319,3.7873,131.99,131.95,9.31]
[1726629844320,9.31,131.99,131.95,9.31]
[1726629844515,2.8175,132.03,131.95,9.31]
[1726629844818,9.31,132.0,131.97,3.7876]
[1726629845319,9.31,131.99,131.96,3.7879]
[1726629852417,13.0972,131.99,131.96,3.7879]
[1726629852821,9.31,131.98,131.95,3.7883]
[1726629853014,9.31,131.98,131.94,9.31]
[1726629853727,13.0976,131.98,131.94,13.0985]
[1726629855126,9.31,131.98,131.94,9.31]
[1726629855321,2.8175,132.03,131.95,9.31]
[1726629855521,9.31,131.99,131.95,9.31]
[1726629856032,13.097,132.0,131.96,3.7879]
[1726629857831,3.7872,131.99,131.96,3.7879]
[1726629858133,3.7872,131.99,131.89,1.4479]
[1726629858134,9.31,131.99,131.94,9.31]
[1726629859126,3.7875,131.98,131.94,13.0984]
[1726629861634,3.7877,131.97,131.94,13.0984]
[1726629861835,9.31,131.99,131.94,13.0984]
[1726629862035,2.8175,132.03,131.95,9.31]
[1726629862239,9.31,132.0,131.95,13.0981]
[1726629862538,3.7873,131.99,131.95,13.0981]
[1726629863436,13.0971,132.0,131.96,3.7879]
[1726629866135,3.7872,131.99,131.96,3.7879]
[1726629866533,3.7872,131.99,131.95,9.31]
[1726629866534,3.7872,131.99,131.95,13.0982]
[1726629871943,13.0972,131.99,131.95,13.0982]
[1726629873637,3.7875,131.98,131.95,9.31]
[1726629875345,3.7875,131.98,131.94,13.0985]
[1726629875542,3.7878,131.97,131.94,9.31]
[1726629877347,3.7878,131.97,131.93,3.7888]
[1726629877547,3.7878,131.97,131.94,9.31]
[1726629881863,3.7878,131.97,131.94,13.0986]
[1726629883760,13.0975,131.98,131.94,3.7886]
[1726629884062,9.31,131.98,131.93,13.0988]
[1726629884463,3.7878,131.97,131.93,13.0988]
[1726629885667,3.7878,131.97,131.94,9.31]
[1726629885972,3.7876,131.98,131.95,9.31]
[1726629895774,3.7876,131.98,131.94,3.7885]
[1726629896272,13.0976,131.98,131.94,3.7885]
[1726629896572,13.0976,131.98,131.94,13.0985]
[1726629898276,3.7879,131.97,131.93,3.7888]
[1726629898476,3.7879,131.97,131.93,13.0988]
[1726629900482,3.7879,131.97,131.94,3.7886]
[1726629900774,3.7879,131.97,131.94,13.0986]
[1726629900977,3.7879,131.97,131.94,9.31]
[1726629901975,3.7879,131.97,131.93,3.7888]
[1726629902276,13.0979,131.97,131.93,13.0988]
[1726629902974,3.7879,131.97,131.93,13.0988]
[1726629903269,9.31,132.0,131.94,9.31]
[1726629904074,3.7874,131.99,131.95,3.7881]
[1726629905484,9.31,131.98,131.95,3.7881]
[1726629905879,13.0975,131.98,131.94,13.0985]
[1726629907079,13.0975,131.98,131.95,3.7883]
[1726629911682,13.0975,131.98,131.94,13.0985]
[1726629916484,2.8175,132.03,131.97,9.31]
[1726629916681,2.8175,132.03,131.98,9.31]
[1726629917087,2.8175,132.03,132.0,9.31]
[1726629917383,1.388,132.03,132.0,9.31]
[1726629918489,5.1741,132.03,132.0,9.31]
[1726629919192,14.4841,132.03,132.0,9.31]
[1726629920385,3.7861,132.03,132.0,9.31]
[1726629923587,3.7861,132.03,131.98,3.7874]
[1726629923783,3.7861,132.03,131.99,9.31]
[1726629924586,3.7861,132.03,131.99,13.0971]
[1726629924786,13.0961,132.03,131.99,13.0971]
[1726629927299,9.31,132.03,132.0,3.7868]
[1726629928292,9.31,132.03,131.99,13.097]
[1726629928794,9.31,132.03,132.0,3.7868]
[1726629930094,9.31,132.04,132.0,13.0968]
[1726629930594,9.31,132.04,132.01,3.7865]
[1726629931191,9.31,132.05,132.02,3.7863]
[1726629931594,18.0694,132.1,132.03,9.31]
[1726629931802,3.7848,132.08,132.05,9.31]
[1726629931991,18.0694,132.1,132.06,9.31]
[1726629932189,20.4369,132.1,132.06,9.31]
[1726629932391,20.4369,132.1,132.06,13.0951]
[1726629932392,25.9628,132.1,132.06,13.0951]
[1726629933098,29.7468,132.1,132.05,3.7854]
[1726629933306,29.7468,132.1,131.98,6.42126463]
[1726629933307,9.31,132.08,131.98,6.42126463]
[1726629933598,9.31,132.08,132.03,9.31]
[1726629933800,3.7849,132.07,132.03,13.0958]
[1726629934302,9.31,132.06,132.02,13.0962]
[1726629934502,13.0952,132.06,132.02,13.0962]
[1726629934692,9.31,132.06,132.02,3.7862]
[1726629934889,2.9853,132.1,132.0,9.31]
[1726629935194,9.31,132.04,132.0,9.31]
[1726629935395,13.0958,132.04,132.0,13.0968]
[1726629935596,9.31,132.04,132.0,13.0968]
[1726629936696,13.0959,132.04,132.0,13.0968]
[1726629936900,13.0959,132.04,132.01,9.31]
[1726629937592,3.7861,132.03,131.99,3.7871]
[1726629937790,3.7861,132.03,132.0,9.31]
[1726629938897,3.7861,132.03,132.0,13.0968]
[1726629942300,3.7864,132.02,132.0,9.31]
[1726629942491,3.7864,132.02,131.99,3.787]
[1726629942492,3.7864,132.02,131.99,13.097]
[1726629942895,2.9853,132.1,132.0,9.31]
[1726629943097,9.31,132.04,132.01,9.31]
[1726629943403,9.31,132.05,132.01,9.31]
[1726629943705,3.7858,132.04,132.01,9.31]
[1726629943905,9.31,132.05,132.01,9.31]
[1726629945005,3.786,132.04,132.01,9.31]
[1726629947798,3.786,132.04,132.01,13.0966]
[1726629949911,13.0957,132.05,132.02,3.7863]
[1726629951415,3.7857,132.05,132.02,3.7863]
[1726629953217,3.7857,132.05,132.02,13.0963]
[1726629956419,13.0953,132.06,132.02,13.0963]
[1726629960725,13.0953,132.06,132.03,3.786]
[1726629961125,13.095,132.07,132.03,3.786]
[1726629961320,2.9853,132.1,132.06,9.31]
[1726629961621,16.0795,132.1,132.06,9.31]
[1726629961817,16.0795,132.1,132.06,13.095]
[1726629963219,6.7695,132.1,132.06,13.095]
[1726629963423,16.0795,132.1,132.06,13.095]
[1726629965230,1.5128,132.1,132.07,3.7849]
[1726629965527,5.2321,132.11,132.08,9.31]
[1726629966117,9.31,132.12,132.08,13.0945]
[1726629966623,13.0934,132.13,132.08,13.0945]
[1726629966826,13.0934,132.13,132.09,9.31]
[1726629967218,13.0934,132.13,132.09,13.0942]
[1726629969829,3.7835,132.12,132.08,13.0945]
[1726629970030,9.31,132.11,132.08,13.0945]
[1726629971036,13.0937,132.11,132.08,9.31]
[1726629978334,13.0937,132.11,132.08,13.0946]
[1726629979335,9.31,132.11,132.08,13.0946]
[1726629981926,3.7836,132.12,132.08,13.0946]
[1726629982328,13.0936,132.12,132.08,13.0946]
[1726629983832,3.7838,132.11,132.07,3.7847]
[1726629984036,3.7838,132.11,132.07,13.0947]
[1726629984339,9.31,132.11,132.07,13.0947]
[1726629986639,13.0939,132.11,132.07,13.0947]
[1726629986837,9.31,132.11,132.07,13.0947]
[1726629987641,3.784,132.1,132.07,13.0947]
[1726629993935,3.784,132.1,132.08,9.31]
[1726629997641,3.7839,132.11,132.08,9.31]
[1726629998045,9.31,132.1,132.06,3.7849]
[1726629998246,13.0942,132.1,132.06,3.7849]
[1726630000448,3.7842,132.1,132.07,9.31]
[1726630001047,3.7842,132.1,132.06,13.0949]
[1726630001849,3.7842,132.1,132.07,3.7849]
[1726630002150,9.31,132.11,132.09,9.31]
[1726630002151,3.7839,132.11,132.09,9.31]
[1726630002453,9.31,132.12,132.09,9.31]
[1726630003052,13.0936,132.12,132.09,9.31]
[1726630007553,13.0936,132.12,132.08,13.0944]
[1726630008945,9.31,132.11,132.07,3.7848]
[1726630009851,3.784,132.1,132.07,3.7848]
[1726630013861,3.784,132.1,132.07,13.0948]
[1726630019566,13.0939,132.11,132.07,13.0948]
[1726630020466,3.7839,132.11,132.07,13.0948]
[1726630021463,3.7839,132.11,132.08,13.0945]
[1726630022170,13.0936,132.12,132.08,13.0945]
[1726630023365,1.465,132.14,132.09,9.31]
[1726630023671,10.775,132.14,132.09,9.31]
[1726630024156,3.7833,132.13,132.1,3.784]
[1726630024365,1.5092,132.15,132.12,9.31]
[1726630024562,9.31,132.16,132.12,9.31]
[1726630025266,5.24672164,132.18,132.12,9.31]
[1726630025468,9.31,132.17,132.12,9.31]
[1726630025769,3.7824,132.16,132.12,13.0934]
[1726630028974,3.7824,132.16,132.12,9.31]
[1726630029969,13.0926,132.15,132.11,3.7836]
[1726630030271,13.0926,132.15,132.11,13.0936]
[1726630035073,3.7829,132.14,132.11,13.0936]
[1726630039767,3.7829,132.14,132.12,9.31]
[1726630039973,3.7827,132.15,132.12,9.31]
[1726630041268,3.7827,132.15,132.12,13.0934]
[1726630046073,13.0924,132.16,132.12,13.0934]
[1726630046472,3.7826,132.15,132.12,13.0934]
[1726630047571,9.31,132.17,132.12,13.0934]
[1726630047774,3.7824,132.16,132.12,13.0934]
[1726630048769,3.7824,132.16,132.13,9.31]
[1726630053278,13.0926,132.15,132.11,3.7836]
[1726630053577,1.4226,132.18,132.1,9.31]
[1726630053775,9.31,132.15,132.1,9.31]
[1726630053975,3.7829,132.14,132.1,13.0939]
[1726630054985,3.7829,132.14,132.11,13.0937]
[1726630055879,3.7829,132.14,132.11,9.31]
[1726630056082,3.7832,132.13,132.11,9.31]
[1726630056580,3.7832,132.13,132.1,3.7838]
[1726630056878,3.7832,132.13,132.11,9.31]
[1726630062082,3.7832,132.13,132.12,9.31]
[1726630064283,1.4226,132.18,132.12,9.31]
[1726630064284,9.31,132.17,132.12,9.31]
[1726630064486,9.31,132.17,132.14,9.31]
[1726630065086,3.7823,132.16,132.14,9.31]
[1726630067590,1.4226,132.18,132.14,9.31]
[1726630068492,3.7821,132.17,132.14,9.31]
[1726630069188,3.7821,132.17,132.13,9.31]
[1726630069391,3.7824,132.16,132.06,5.46309269]
[1726630069595,3.7824,132.16,132.12,9.31]
[1726630069792,3.7824,132.16,132.12,13.0933]
[1726630070002,1.3749,132.19,132.15,9.31]
[1726630070800,9.31,132.18,132.13,3.783]
[1726630071095,9.31,132.18,132.13,13.093]
[1726630071494,9.31,132.17,132.13,3.783]
[1726630071789,1.3749,132.19,132.12,13.0933]
[1726630071790,9.31,132.16,132.12,13.0933]
[1726630072194,13.0925,132.16,132.12,13.0933]
[1726630072590,1.4126,132.18,132.14,9.31]
[1726630072799,10.7226,132.18,132.14,9.31]
[1726630073393,3.7822,132.17,132.14,9.31]
[1726630075799,3.7822,132.17,132.13,13.093]
[1726630078503,3.7822,132.17,132.14,9.31]
[1726630078997,1.4126,132.18,132.15,9.31]
[1726630079203,10.6849,132.19,132.15,9.31]
[1726630080301,3.7819,132.18,132.15,9.31]
[1726630080495,3.7819,132.18,132.14,9.31]
[1726630081602,9.31,132.17,132.1,8.07901491]
[1726630081805,9.31,132.17,132.12,9.31]
[1726630082001,13.0921,132.17,132.13,9.31]
[1726630082507,2.8499,132.19,132.1,8.07901491]
[1726630082708,3.7824,132.16,132.13,9.31]
[1726630083204,13.0921,132.17,132.13,9.31]
[1726630084004,3.7821,132.17,132.13,9.31]
[1726630084907,3.7821,132.17,132.13,13.0932]
[1726630086005,3.7821,132.17,132.13,9.31]
[1726630092127,3.7823,132.16,132.13,9.31]
[1726630093022,3.7821,132.17,132.13,13.0931]
[1726630098028,3.7821,132.17,132.14,9.31]
[1726630100124,3.7821,132.17,132.13,13.0931]
[1726630101426,3.7818,132.18,132.14,13.0928]
[1726630101730,3.7818,132.18,132.1,8.07901491]
[1726630101929,3.7818,132.18,132.15,9.31]
[1726630102730,3.7814,132.2,132.17,9.31]
[1726630104128,3.7814,132.2,132.16,13.0921]
[1726630105332,13.0914,132.2,132.16,13.0921]
[1726630105633,3.78284288,132.22,132.14,3.7827]
[1726630105634,9.31,132.19,132.14,3.7827]
[1726630105828,9.31,132.18,132.14,13.0927]
[1726630106428,13.0918,132.18,132.14,13.0927]
[1726630109029,13.0916,132.19,132.15,9.31]
[1726630110836,3.7817,132.18,132.15,9.31]
[1726630112939,3.7817,132.18,132.15,13.0926]
[1726630113132,3.7817,132.18,132.15,9.31]
[1726630115530,3.7815,132.19,132.15,13.0924]
[1726630116231,13.0915,132.19,132.15,13.0924]
[1726630117935,3.7817,132.18,132.15,13.0924]
[1726630118138,3.7817,132.18,132.14,3.7828]
[1726630118432,3.7817,132.18,132.13,9.31]
[1726630118433,9.31,132.18,132.13,9.31]
[1726630119139,3.782,132.17,132.13,13.093]
[1726630119837,13.0919,132.18,132.14,9.31]
[1726630120828,13.0919,132.18,132.14,13.0929]
[1726630121439,3.7819,132.18,132.14,13.0929]
[1726630125438,3.7819,132.18,132.15,9.31]
[1726630126040,3.7816,132.19,132.15,13.0926]
[1726630126744,13.0916,132.19,132.15,13.0926]
[1726630127337,3.7817,132.18,132.15,13.0926]
[1726630128345,3.7817,132.18,132.15,9.31]
[1726630133749,3.7817,132.18,132.16,9.31]
[1726630133940,3.7816,132.19,132.16,9.31]
[1726630134246,9.31,132.2,132.15,9.31]
[1726630135854,3.7817,132.18,132.15,9.31]
[1726630138554,4.3224,132.24,132.17,9.31]
[1726630138852,4.3224,132.24,132.18,9.31]
[1726630139059,13.10693882,132.23,132.18,9.31]
[1726630139551,3.7814,132.2,132.18,9.31]
[1726630141046,3.79693882,132.23,132.18,9.31]
[1726630141352,3.781,132.21,132.18,9.31]
[1726630147454,13.0912,132.2,132.16,3.7822]
[1726630147648,13.0912,132.2,132.16,13.0922]
[1726630151063,3.7812,132.2,132.17,9.31]
[1726630151964,3.7808,132.22,132.19,9.31]
[1726630154665,3.7808,132.22,132.18,3.7817]
[1726630154666,4.3224,132.24,132.17,3.7819]
[1726630154863,9.31,132.2,132.1,8.07901491]
[1726630155063,9.31,132.19,132.16,3.7823]
[1726630155669,13.0913,132.2,132.16,3.7823]
[1726630155970,3.81869106,132.25,132.19,9.31]
[1726630156163,9.31,132.23,132.19,9.31]
[1726630156763,3.7807,132.22,132.19,9.31]
[1726630156961,3.7807,132.22,132.18,13.0917]
[1726630157265,13.0907,132.22,132.18,9.31]
[1726630158460,3.7807,132.22,132.19,9.31]
[1726630159672,3.7809,132.21,132.19,9.31]
[1726630160469,3.7806,132.22,132.2,9.31]
[1726630161476,9.31,132.22,132.1,8.07901491]
[1726630161777,9.31,132.21,132.16,9.31]
[1726630161977,3.7816,132.19,132.16,9.31]
[1726630162371,3.7816,132.19,132.17,9.31]
[1726630165074,3.7813,132.2,132.18,9.31]
[1726630165375,4.4489,132.23,132.18,9.31]
[1726630165576,3.781,132.21,132.19,9.31]
[1726630170083,13.7589,132.23,132.1,8.07901491]
[1726630170485,13.7589,132.23,132.18,9.31]
[1726630170683,3.7817,132.19,132.18,9.31]
[1726630172186,3.7817,132.19,132.1,157.65219249]
[1726630172387,3.7817,132.19,132.18,9.31]
[1726630177986,4.4489,132.23,132.17,9.31]
[1726630177987,3.7818,132.18,132.17,9.31]
[1726630181001,3.7814,132.2,132.17,9.31]
[1726630181292,3.7814,132.2,132.19,9.31]
[1726630186895,3.7814,132.2,132.16,3.7823]
[1726630187196,3.7814,132.2,132.18,9.31]
[1726630189702,3.77308719,132.25,132.19,9.31]
[1726630189996,4.3788,132.28,132.12,10.78700652]
[1726630190197,3.781,132.21,132.18,9.31]
[1726630191901,3.781,132.21,132.19,9.31]
[1726630194611,3.7812,132.2,132.19,9.31]
[1726630194813,3.7812,132.2,132.18,9.31]
[1726630197312,3.7812,132.2,132.16,3.7823]
[1726630197610,3.7812,132.2,132.19,9.31]
[1726630200602,3.7815,132.19,132.1,157.65219249]
[1726630200815,9.31,132.22,132.17,9.31]
[1726630201313,3.7816,132.19,132.17,9.31]
[1726630202615,3.7817,132.18,132.17,9.31]
[1726630205513,10.7282,132.23,132.17,9.31]
[1726630205514,3.7816,132.19,132.17,9.31]